bitfinex-derivatives/quotes_ETHF0:USTF0_20250404
["timestamp","ask_amount","ask_price","bid_price","bid_amount"]
[1743740378810,2.58266,1786.2,1786.0,0.7385]
[1743740379117,2.58266,1786.2,1786.0,1.8587]
[1743740379714,2.58266,1786.2,1786.1,1.12018]
[1743740379919,23.52279534,1786.3,1786.1,1.12018]
[1743740380119,1.12012,1786.2,1786.1,1.12018]
[1743740380414,1.12018,1786.1,1786.0,1.8587]
[1743740381219,1.12024,1786.0,1785.9,5.62995]
[1743740381522,1.4383,1786.2,1786.0,1.12024]
[1743740381721,2.55848,1786.2,1786.0,1.12024]
[1743740382520,1.12018,1786.1,1786.0,1.12024]
[1743740382709,1.4383,1786.2,1786.0,1.12024]
[1743740382915,1.12018,1786.1,1785.9,0.7487]
[1743740383116,1.12018,1786.1,1786.0,1.12024]
[1743740383420,1.4383,1786.2,1785.9,4.5117]
[1743740383622,2.55846,1786.2,1786.1,1.12018]
[1743740384223,21.70400534,1786.3,1786.2,1.12012]
[1743740384423,22.40540534,1786.3,1786.2,1.12012]
[1743740384729,1.12012,1786.2,1786.1,1.86445]
[1743740384918,23.52550534,1786.3,1786.2,1.12012]
[1743740385119,24.93120534,1786.3,1786.1,1.86442]
[1743740385322,24.93120534,1786.3,1786.1,0.7443]
[1743740385623,24.93120534,1786.3,1786.2,1.12012]
[1743740385921,21.70400534,1786.3,1786.2,1.12012]
[1743740386517,22.82405534,1786.3,1786.2,1.12012]
[1743740387117,24.24465534,1786.3,1786.2,1.12012]
[1743740387524,23.12460534,1786.3,1786.1,0.7443]
[1743740387822,24.24467534,1786.3,1786.2,1.12012]
[1743740388426,23.12460534,1786.3,1786.2,1.12012]
[1743740388725,21.70400534,1786.3,1786.2,1.12012]
[1743740390422,21.70400534,1786.3,1786.2,4.87312]
[1743740391626,0.00838528,1786.3,1786.2,4.87312]
[1743740393721,0.00838528,1786.3,1786.2,1.12012]
[1743740393926,0.00838528,1786.3,1786.2,4.86812]
[1743740394224,1.40528528,1786.3,1786.2,4.86812]
[1743740395528,0.00838528,1786.3,1786.2,4.86812]
[1743740397323,0.00838528,1786.3,1786.2,6.36872]
[1743740397723,1.54888528,1786.3,1786.2,6.36872]
[1743740399330,0.00838528,1786.3,1786.2,6.36872]
[1743740401918,0.73528528,1786.3,1786.2,1.12012]
[1743740402129,0.73528528,1786.3,1786.1,3.741]
[1743740402130,1.12012,1786.2,1786.1,3.741]
[1743740402333,3.22742,1786.2,1786.1,3.741]
[1743740402525,3.22742,1786.2,1786.1,4.86113]
[1743740402831,2.1073,1786.2,1786.1,4.86113]
[1743740405327,2.1073,1786.2,1786.1,6.29913]
[1743740405630,3.22742,1786.2,1786.1,6.29913]
[1743740405825,1.12024,1786.0,1785.9,1.86899]
[1743740406024,1.12024,1786.0,1785.9,1.12029]
[1743740406533,1.5405,1786.1,1785.9,1.12029]
[1743740406935,2.66072,1786.1,1785.9,1.12029]
[1743740407133,1.5405,1786.1,1785.9,1.12029]
[1743740407433,2.66073,1786.1,1785.9,1.12029]
[1743740407633,1.487,1786.0,1785.9,1.12029]
[1743740408135,1.487,1786.0,1785.9,4.32809]
[1743740408336,1.487,1786.0,1785.9,5.76359]
[1743740410036,1.12843528,1786.3,1786.2,1.12012]
[1743740410329,0.00838528,1786.3,1786.2,1.12012]
[1743740410735,0.00838528,1786.3,1786.2,2.53152]
[1743740411831,0.71558528,1786.3,1786.2,2.53152]
[1743740414244,1.83563528,1786.3,1786.2,2.53152]
[1743740414436,3.33513528,1786.3,1786.2,2.53152]
[1743740414633,2.21508528,1786.3,1786.2,2.53152]
[1743740415042,3.33513528,1786.3,1786.2,2.53152]
[1743740415534,1.12012,1786.2,1786.1,4.85914]
[1743740415746,1.12012,1786.2,1785.9,6.00853]
[1743740415747,1.12018,1786.1,1786.0,3.739]
[1743740416135,1.12024,1786.0,1785.9,4.3281]
[1743740416436,1.83724,1786.0,1785.9,3.2078]
[1743740416633,1.83724,1786.0,1785.8,4.85933]
[1743740416836,1.3884,1785.9,1785.8,4.85933]
[1743740417236,1.3884,1785.9,1785.8,1.12033]
[1743740417435,1.3884,1785.9,1785.8,6.37363]
[1743740418437,2.5087,1785.9,1785.8,6.37363]
[1743740418636,1.3884,1785.9,1785.8,4.85933]
[1743740419239,1.3884,1785.9,1785.4,0.00838528]
[1743740419240,2.80092,1785.8,1785.4,0.00838528]
[1743740419545,1.12056,1785.5,1785.4,0.00838528]
[1743740419845,1.12053,1785.6,1785.4,1.12899528]
[1743740420047,1.12053,1785.6,1785.4,2.62089528]
[1743740420048,2.61923,1785.6,1785.4,2.62089528]
[1743740420350,1.12056,1785.5,1785.4,1.50028528]
[1743740420642,2.61926,1785.5,1785.4,1.50028528]
[1743740421842,2.61926,1785.5,1785.4,3.74838528]
[1743740422238,2.61926,1785.5,1785.4,0.00838528]
[1743740423041,2.61926,1785.5,1785.4,1.41138528]
[1743740425145,6.71279,1785.7,1785.4,1.41138528]
[1743740425146,1.12053,1785.6,1785.4,2.53200528]
[1743740425346,2.2045,1785.7,1785.6,1.12049]
[1743740425950,3.32493,1785.7,1785.6,1.4305]
[1743740426746,1.12056,1785.5,1785.4,0.00838528]
[1743740427150,4.32836,1785.5,1785.4,0.00838528]
[1743740433556,21.69562006,1785.7,1785.6,1.12049]
[1743740433752,22.81605006,1785.7,1785.5,4.11789]
[1743740434052,22.81605006,1785.7,1785.6,1.5004]
[1743740434551,21.69562006,1785.7,1785.6,1.5004]
[1743740434948,22.81605006,1785.7,1785.6,1.5004]
[1743740435555,1.12042,1785.8,1785.6,1.5004]
[1743740435757,1.12049,1785.6,1785.5,4.4841]
[1743740436055,1.12049,1785.6,1785.5,6.0159]
[1743740437055,1.12049,1785.6,1785.5,9.2237]
[1743740437457,1.12046,1785.7,1785.5,10.34425]
[1743740437648,1.12042,1785.8,1785.6,1.5318]
[1743740437950,1.12028,1786.0,1785.7,4.32822]
[1743740438155,1.12028,1786.0,1785.8,5.151]
[1743740438454,1.12028,1786.0,1785.9,2.141]
[1743740438654,3.37003,1786.1,1785.9,2.141]
[1743740438849,3.37003,1786.1,1786.0,1.41]
[1743740441161,1.12024,1786.0,1785.9,0.731]
[1743740441347,1.12037,1785.8,1785.7,8.80521]
[1743740441958,3.35134,1785.9,1785.8,1.12037]
[1743740442856,1.12037,1785.8,1785.7,10.30069]
[1743740443059,1.5251,1785.8,1785.7,10.30069]
[1743740444355,2.64547,1785.8,1785.7,9.1803]
[1743740445159,2.64547,1785.8,1785.7,5.9725]
[1743740445863,2.64547,1785.8,1785.7,2.2325]
[1743740446157,2.64547,1785.8,1785.7,5.9725]
[1743740446861,2.64547,1785.8,1785.7,7.09293]
[1743740447355,2.64547,1785.8,1785.7,5.9725]
[1743740448158,1.12037,1785.8,1785.7,5.9725]
[1743740449559,1.12037,1785.8,1785.7,7.09293]
[1743740451658,1.12037,1785.8,1785.7,5.9725]
[1743740451962,1.12037,1785.8,1785.7,7.09293]
[1743740452358,1.12037,1785.8,1785.7,5.9725]
[1743740453662,2.54272,1785.8,1785.7,3.74]
[1743740453961,2.54272,1785.8,1785.7,5.1995]
[1743740454663,2.54272,1785.8,1785.7,6.31993]
[1743740455662,1.12056,1785.5,1785.4,0.00838528]
[1743740456255,2.63466,1785.5,1785.4,0.00838528]
[1743740457459,1.12081,1785.1,1785.0,1.4261]
[1743740458463,1.12087,1785.0,1784.9,3.2078]
[1743740458657,1.12087,1785.0,1784.9,4.64228528]
[1743740460263,1.12114,1784.6,1784.5,4.32895]
[1743740460465,1.12108,1784.7,1784.6,1.1211]
[1743740460660,1.12108,1784.7,1784.6,2.586]
[1743740461165,2.2395,1784.8,1784.6,2.586]
[1743740461358,3.96478528,1785.2,1784.6,1.4649]
[1743740461552,3.96478528,1785.2,1784.5,6.9478]
[1743740461553,0.00838528,1785.2,1785.1,1.12081]
[1743740461758,1.12912528,1785.2,1785.0,3.74]
[1743740462061,0.00838528,1785.2,1785.1,1.4649]
[1743740462853,0.00838528,1785.2,1785.1,3.33981]
[1743740463063,1.12912528,1785.2,1785.1,5.4268]
[1743740463565,1.12912528,1785.2,1785.1,3.2078]
[1743740463959,1.12087,1785.0,1784.9,2.2799]
[1743740464267,1.12087,1785.0,1784.9,6.0199]
[1743740465763,2.60121,1785.1,1784.9,6.0199]
[1743740465960,2.60121,1785.1,1785.0,1.4081]
[1743740469265,2.60121,1785.1,1784.9,5.60792]
[1743740469469,2.60121,1785.1,1784.9,7.01222]
[1743740470767,2.60121,1785.1,1785.0,1.12087]
[1743740471462,2.60121,1785.1,1784.9,5.8913]
[1743740471657,2.60121,1785.1,1785.0,1.12087]
[1743740471864,1.4804,1785.1,1785.0,1.12087]
[1743740472072,1.4804,1785.1,1785.0,2.61597]
[1743740472575,1.12081,1785.1,1785.0,2.61597]
[1743740472964,1.85747528,1785.2,1785.0,2.61597]
[1743740473163,1.12081,1785.1,1785.0,2.61597]
[1743740473363,2.52531,1785.1,1785.0,2.61597]
[1743740473777,1.4045,1785.1,1785.0,2.61597]
[1743740474262,0.73668528,1785.2,1785.1,1.12081]
[1743740474469,0.00838528,1785.2,1785.1,2.61461]
[1743740478873,0.7228,1785.6,1785.5,1.12056]
[1743740479070,1.12043,1785.8,1785.6,1.12045]
[1743740479269,2.60973,1785.7,1785.5,1.1205]
[1743740479471,2.60973,1785.7,1785.5,2.5655]
[1743740479774,7.05528,1785.9,1785.5,1.445]
[1743740479775,2.60979,1785.6,1785.5,1.445]
[1743740480575,1.12058,1785.5,1785.3,3.741]
[1743740480776,3.34608,1785.5,1785.4,1.12061]
[1743740480974,2.2255,1785.5,1785.4,1.12061]
[1743740481176,2.2255,1785.5,1785.4,2.60121]
[1743740481975,5.02692,1785.5,1785.2,5.06773]
[1743740482172,2.59284,1785.4,1785.3,4.86068]
[1743740482874,1.4722,1785.4,1785.3,4.86068]
[1743740483073,1.4722,1785.4,1785.3,6.34128]
[1743740484574,1.12057,1785.5,1785.3,5.2206]
[1743740484775,1.12057,1785.5,1785.4,1.5009]
[1743740485477,2.61027,1785.5,1785.4,1.5009]
[1743740486377,1.12062,1785.4,1785.3,3.74]
[1743740486566,2.56382,1785.4,1785.3,3.74]
[1743740487475,1.4432,1785.4,1785.0,0.00838528]
[1743740487677,1.12081,1785.1,1785.0,0.00838528]
[1743740488479,3.62081,1785.1,1785.0,0.00838528]
[1743740488675,1.12081,1785.1,1785.0,0.00838528]
[1743740488874,2.56401,1785.1,1785.0,0.00838528]
[1743740495985,1.12081,1785.1,1785.0,3.28525528]
[1743740496178,1.12081,1785.1,1785.0,2.16438528]
[1743740497692,1.12081,1785.1,1785.0,1.39618528]
[1743740503295,2.58211,1785.1,1785.0,1.39618528]
[1743740507404,1.863,1785.2,1785.0,1.39618528]
[1743740507606,1.1208,1785.2,1785.1,0.7475]
[1743740507905,1.1208,1785.2,1785.1,1.5055]
[1743740508101,1.1208,1785.2,1785.1,3.0301]
[1743740508704,2.5832,1785.2,1785.1,2.2721]
[1743740510009,2.5832,1785.2,1785.1,3.39291]
[1743740510608,2.5832,1785.2,1785.1,2.2721]
[1743740510808,2.5832,1785.2,1785.1,3.39291]
[1743740511011,2.5832,1785.2,1785.1,2.2721]
[1743740511209,2.5832,1785.2,1785.1,3.39291]
[1743740512913,2.5832,1785.2,1785.1,2.2721]
[1743740514017,1.12081,1785.1,1785.0,0.00838528]
[1743740514210,2.55721,1785.1,1785.0,1.44628528]
[1743740514520,2.55721,1785.1,1785.0,2.56715528]
[1743740514914,2.55721,1785.1,1785.0,0.00838528]
[1743740515114,2.55721,1785.1,1785.0,1.12925528]
[1743740515613,2.55721,1785.1,1785.0,1.44628528]
[1743740516015,2.55721,1785.1,1785.0,2.56715528]
[1743740516515,2.55721,1785.1,1785.0,4.87025528]
[1743740516718,2.55721,1785.1,1785.0,6.30815528]
[1743740517015,2.55721,1785.1,1785.0,3.74938528]
[1743740517810,2.55721,1785.1,1785.0,0.00838528]
[1743740518015,1.12106,1784.7,1784.6,3.2078]
[1743740518212,1.12118,1784.5,1784.4,6.60685]
[1743740518417,1.12118,1784.5,1784.4,3.39905]
[1743740518614,1.12118,1784.5,1784.4,2.2778]
[1743740518916,2.64898,1784.5,1784.4,2.2778]
[1743740520421,1.5278,1784.5,1784.4,2.2778]
[1743740520609,2.64898,1784.5,1784.4,2.2778]
[1743740520921,2.64902,1784.5,1784.3,1.12131]
[1743740521127,2.64902,1784.5,1784.3,3.38741]
[1743740521416,1.12125,1784.4,1784.3,3.38741]
[1743740521613,2.64903,1784.5,1784.3,3.38741]
[1743740521815,1.12125,1784.4,1784.3,3.38741]
[1743740522010,2.64904,1784.5,1784.3,3.38741]
[1743740522416,2.64898,1784.5,1784.4,1.12125]
[1743740522611,2.64898,1784.5,1784.4,1.5145]
[1743740522817,2.64898,1784.5,1784.4,2.63575]
[1743740523121,2.64898,1784.5,1784.4,1.5145]
[1743740523320,2.64898,1784.5,1784.3,5.08068]
[1743740523321,1.12125,1784.4,1784.3,3.9594]
[1743740523521,2.58525,1784.4,1784.3,3.9594]
[1743740523722,1.464,1784.4,1784.3,6.58931]
[1743740525521,1.12124,1784.5,1784.4,1.12125]
[1743740525723,1.464,1784.5,1784.4,2.62985]
[1743740526821,0.00838528,1784.6,1784.5,1.12118]
[1743740527024,0.00838528,1784.6,1784.5,10.27398]
[1743740527226,0.00838528,1784.6,1784.5,12.77398]
[1743740527728,21.69562006,1784.8,1784.7,1.12106]
[1743740528118,4.3287,1785.0,1784.8,1.12094]
[1743740528318,4.3287,1785.0,1784.9,7.02983]
[1743740528520,3.2078,1785.0,1784.9,7.02983]
[1743740528922,1.12087,1785.0,1784.9,7.02983]
[1743740529218,25.03296534,1785.1,1784.9,7.02983]
[1743740529526,25.03296534,1785.1,1785.0,1.5054]
[1743740530320,23.91210534,1785.1,1785.0,2.62627]
[1743740530524,21.70400534,1785.1,1785.0,2.62627]
[1743740531030,0.00838528,1785.1,1785.0,2.62627]
[1743740533930,1.12919528,1785.1,1785.0,2.62627]
[1743740534430,0.00838528,1785.1,1785.0,2.62627]
[1743740539241,21.69562006,1785.4,1785.3,1.12068]
[1743740539436,21.69562006,1785.4,1785.3,4.86068]
[1743740539737,21.69562006,1785.4,1785.3,7.81268]
[1743740540936,0.00838528,1785.5,1785.3,7.81268]
[1743740540937,0.00838528,1785.5,1785.4,1.12062]
[1743740541235,0.00838528,1785.5,1785.4,2.53632]
[1743740541434,1.12894528,1785.5,1785.4,2.53632]
[1743740542438,1.12894528,1785.5,1785.4,1.4157]
[1743740542630,1.12062,1785.4,1785.2,3.2078]
[1743740542831,3.28558,1785.3,1785.2,4.86069]
[1743740543838,2.1649,1785.3,1785.2,4.86069]
[1743740544239,1.87682,1785.4,1785.3,1.12068]
[1743740544536,1.87682,1785.4,1785.3,2.52908]
[1743740544737,3.26682,1785.4,1785.3,2.52908]
[1743740545040,3.26682,1785.4,1785.3,1.4084]
[1743740545238,1.12068,1785.3,1785.2,6.9478]
[1743740545429,2.51068,1785.3,1785.2,3.74]
[1743740545632,1.12074,1785.2,1785.1,1.1208]
[1743740545833,1.12081,1785.1,1785.0,9.47704]
[1743740546033,1.12081,1785.1,1785.0,8.3562]
[1743740546235,2.51081,1785.1,1785.0,8.3562]
[1743740546435,1.39,1785.1,1785.0,9.47707]
[1743740546635,2.51081,1785.1,1785.0,9.47707]
[1743740547145,2.51081,1785.1,1785.0,8.3562]
[1743740547440,2.51081,1785.1,1785.0,6.26927]
[1743740547641,2.51081,1785.1,1785.0,1.12087]
[1743740547936,2.51081,1785.1,1785.0,4.86087]
[1743740548142,1.39,1785.1,1785.0,4.86087]
[1743740548337,0.7092,1785.2,1785.1,1.12081]
[1743740548536,0.7092,1785.2,1785.1,2.56591]
[1743740548737,1.4186,1785.3,1785.2,1.12074]
[1743740548938,1.4186,1785.3,1785.2,2.56584]
[1743740549141,2.53928,1785.3,1785.2,2.56584]
[1743740549340,1.12074,1785.2,1785.1,1.12076]
[1743740549732,1.12074,1785.2,1785.1,2.56591]
[1743740550138,1.4186,1785.3,1785.1,1.4451]
[1743740550338,2.53928,1785.3,1785.2,2.62834]
[1743740550739,2.53928,1785.3,1785.2,1.5076]
[1743740550947,1.12074,1785.2,1785.1,1.12078]
[1743740551147,2.64104,1785.2,1785.1,2.62838]
[1743740552648,1.5203,1785.2,1785.1,2.62838]
[1743740553040,2.64104,1785.2,1785.1,2.62838]
[1743740553747,1.5203,1785.2,1785.1,2.62838]
[1743740554559,2.64104,1785.2,1785.1,2.62838]
[1743740554751,2.64104,1785.2,1785.1,1.12078]
[1743740556048,1.12081,1785.1,1785.0,6.27602]
[1743740556245,2.2367,1785.1,1785.0,6.27602]
[1743740556645,1.12068,1785.3,1785.2,1.12074]
[1743740556851,1.82688,1785.3,1785.2,1.12074]
[1743740557051,3.34278,1785.3,1785.2,1.12074]
[1743740559254,3.34278,1785.3,1785.1,1.4322]
[1743740559556,3.34278,1785.3,1785.2,1.12074]
[1743740561655,2.2221,1785.3,1785.2,1.12074]
[1743740562049,0.7062,1785.3,1785.2,1.12074]
[1743740562251,0.7062,1785.3,1785.2,1.85144]
[1743740564955,2.2448,1785.3,1785.2,1.85144]
[1743740565156,2.2448,1785.3,1785.2,3.37904]
[1743740567449,2.2448,1785.3,1785.2,2.64834]
[1743740567649,3.36548,1785.3,1785.2,2.64834]
[1743740567853,2.2448,1785.3,1785.2,2.64834]
[1743740568060,3.36548,1785.3,1785.2,2.64834]
[1743740568857,2.2448,1785.3,1785.2,2.64834]
[1743740569060,3.36548,1785.3,1785.2,2.64834]
[1743740569961,1.12074,1785.2,1785.1,1.12079]
[1743740570158,2.52444,1785.2,1785.0,8.4878]
[1743740570358,2.52444,1785.2,1785.1,1.12081]
[1743740572055,1.4037,1785.2,1785.1,1.12081]
[1743740572254,0.7062,1785.3,1785.2,1.12074]
[1743740572756,0.7062,1785.3,1785.2,2.51744]
[1743740575865,0.7062,1785.3,1785.1,1.12077]
[1743740576063,2.51484,1785.2,1785.1,1.12077]
[1743740576857,2.51484,1785.2,1785.1,2.54607]
[1743740577361,1.3941,1785.2,1785.1,2.54607]
[1743740579654,1.3941,1785.2,1785.0,1.12084]
[1743740579867,1.12081,1785.1,1785.0,4.85984]
[1743740580059,1.12081,1785.1,1785.0,5.1974]
[1743740580259,1.12081,1785.1,1785.0,1.4584]
[1743740580756,2.59351,1785.1,1785.0,2.57927]
[1743740581259,2.59351,1785.1,1785.0,1.4584]
[1743740582168,2.59351,1785.1,1785.0,2.57927]
[1743740585768,1.4727,1785.1,1785.0,2.57927]
[1743740586069,23.87752006,1785.3,1785.2,1.12074]
[1743740586262,23.52250006,1785.3,1785.2,4.85874]
[1743740586463,21.69562006,1785.3,1785.2,4.85874]
[1743740586756,21.69562006,1785.3,1785.2,5.58754]
[1743740586960,22.81630006,1785.3,1785.2,7.12724]
[1743740587160,21.69562006,1785.3,1785.2,7.12724]
[1743740587562,22.81630006,1785.3,1785.2,7.12724]
[1743740588474,21.69562006,1785.3,1785.2,7.12724]
[1743740588669,22.81630006,1785.3,1785.2,7.12724]
[1743740589265,21.69562006,1785.3,1785.2,7.12724]
[1743740589461,21.69562006,1785.3,1785.2,10.33504]
[1743740593677,21.69562006,1785.3,1785.2,9.60624]
[1743740593973,22.42682006,1785.3,1785.2,9.60624]
[1743740595870,23.88182006,1785.3,1785.2,9.60624]
[1743740596571,25.00250006,1785.3,1785.2,8.06654]
[1743740596767,23.88182006,1785.3,1785.2,8.06654]
[1743740597175,22.42682006,1785.3,1785.2,8.82334]
[1743740597376,22.42682006,1785.3,1785.2,10.28004]
[1743740598274,21.69562006,1785.3,1785.2,10.28004]
[1743740599381,21.69562006,1785.3,1785.2,7.07224]
[1743740600693,21.69562006,1785.3,1785.2,10.28004]
[1743740604490,21.69562006,1785.3,1785.2,12.78004]
[1743740604992,20.50147406,1785.3,1785.2,12.78004]
[1743740605192,17.69908194,1785.3,1785.2,12.78004]
[1743740605993,15.68059194,1785.3,1785.2,12.78004]
[1743740606192,12.94080194,1785.3,1785.2,12.78004]
[1743740606393,10.13840982,1785.3,1785.2,12.78004]
[1743740606593,7.3360177,1785.3,1785.2,12.78004]
[1743740606798,0.00838528,1785.5,1785.4,1.12062]
[1743740606998,0.00838528,1785.5,1785.4,4.32842]
[1743740607191,0.00838528,1785.5,1785.4,6.82842]
[1743740607391,0.00838528,1785.5,1785.4,8.22352]
[1743740608092,0.00838528,1785.5,1785.4,9.46052]
[1743740608991,1.41368528,1785.5,1785.4,9.46052]
[1743740610196,0.00838528,1785.5,1785.4,9.46052]
[1743740610693,0.00838528,1785.5,1785.4,11.96052]
[1743740611095,0.00838528,1785.5,1785.4,9.46052]
[1743740613397,0.00838528,1785.5,1785.4,11.96052]
[1743740616105,0.00838528,1785.5,1785.4,4.32842]
[1743740616503,0.70308528,1785.5,1785.4,8.06442]
[1743740616797,1.40618528,1785.5,1785.4,8.06442]
[1743740617706,2.82528528,1785.5,1785.4,8.06442]
[1743740619603,2.13058528,1785.5,1785.4,8.06442]
[1743740619803,0.71148528,1785.5,1785.4,8.06442]
[1743740620106,0.71148528,1785.5,1785.4,8.77502]
[1743740620604,0.00838528,1785.5,1785.4,8.77502]
[1743740626601,1.54888528,1785.5,1785.4,8.77502]
[1743740628204,1.54888528,1785.5,1785.4,9.55122]
[1743740628406,2.25288528,1785.5,1785.4,9.55122]
[1743740629012,2.25288528,1785.5,1785.4,8.06342]
[1743740633408,2.25288528,1785.5,1785.4,9.47422]
[1743740635211,4.32789,1786.3,1786.1,1.12016]
[1743740635410,4.32787,1786.3,1786.0,2.80059]
[1743740635610,3.2078,1786.3,1786.2,1.12012]
[1743740635907,23.95535997,1786.4,1786.3,1.12005]
[1743740636615,23.95535997,1786.4,1786.3,5.79715]
[1743740637414,23.95535997,1786.4,1786.3,6.55575]
[1743740639419,0.00838528,1786.5,1786.4,1.11999]
[1743740639612,0.00838528,1786.5,1786.4,2.59789]
[1743740640619,0.00838528,1786.5,1786.4,5.09789]
[1743740640824,0.00838528,1786.5,1786.4,5.81469]
[1743740641018,0.00838528,1786.5,1786.4,3.31469]
[1743740641912,5.28e-06,1786.5,1786.4,5.81469]
[1743740642112,2.2477,1787.0,1786.9,1.11968]
[1743740642322,2.2477,1787.0,1786.9,4.85268]
[1743740643316,0.7082,1787.0,1786.9,8.06048]
[1743740643523,0.00838528,1787.1,1787.0,1.11961]
[1743740643714,0.00838528,1787.1,1787.0,2.65821]
[1743740646715,0.00838528,1787.1,1787.0,5.15821]
[1743740649226,1.5189,1787.6,1787.5,1.1193]
[1743740649428,1.4643,1787.7,1787.6,1.11924]
[1743740649724,1.4643,1787.7,1787.6,4.32704]
[1743740649924,2.8956,1787.7,1787.6,5.83724]
[1743740650222,0.7184,1787.7,1787.6,5.83724]
[1743740650929,2.1182,1787.7,1787.6,4.32704]
[1743740651427,2.1182,1787.7,1787.6,3.2078]
[1743740651622,2.1182,1787.7,1787.5,4.85863528]
[1743740651827,2.1704,1787.6,1787.5,4.85863528]
[1743740653227,2.1704,1787.6,1787.5,6.38663528]
[1743740654328,2.1704,1787.6,1787.5,5.26738528]
[1743740654527,3.28964,1787.6,1787.5,3.73938528]
[1743740654726,2.1704,1787.6,1787.5,3.73938528]
[1743740654926,2.1704,1787.6,1787.5,4.85868528]
[1743740655528,2.1704,1787.6,1787.5,3.73938528]
[1743740655836,3.28964,1787.6,1787.5,3.73838528]
[1743740656044,2.1704,1787.6,1787.5,4.85768528]
[1743740658650,5.78964,1787.6,1787.5,3.73838528]
[1743740658949,2.1704,1787.6,1787.5,4.85768528]
[1743740659846,3.28964,1787.6,1787.5,4.85768528]
[1743740662454,3.28964,1787.6,1787.5,3.73838528]
[1743740663055,3.28964,1787.6,1787.5,4.85768528]
[1743740664358,2.1704,1787.6,1787.5,4.85768528]
[1743740664558,2.1704,1787.6,1787.5,6.39858528]
[1743740664855,1.3998,1787.6,1787.5,6.39858528]
[1743740665052,0.7184,1787.7,1787.6,1.11924]
[1743740665254,0.7184,1787.7,1787.6,2.66014]
[1743740665453,1.83758,1787.7,1787.6,2.66014]
[1743740665753,2.2414,1787.7,1787.6,1.11924]
[1743740665952,3.36062,1787.7,1787.6,1.11924]
[1743740666151,0.7184,1787.7,1787.6,1.11924]
[1743740666352,0.7184,1787.7,1787.6,2.51144]
[1743740667258,1.83758,1787.7,1787.6,2.51144]
[1743740667459,3.23268,1787.7,1787.6,2.51144]
[1743740667756,3.23268,1787.7,1787.6,1.11924]
[1743740668058,2.1135,1787.7,1787.6,1.11924]
[1743740669659,2.1135,1787.7,1787.6,2.61804]
[1743740671457,0.7184,1787.7,1787.6,2.61804]
[1743740671654,0.00838528,1787.8,1787.7,1.11918]
[1743740671961,0.00838528,1787.8,1787.7,6.47988]
[1743740679468,0.00838528,1787.8,1787.7,5.78168]
[1743740679668,0.00838528,1787.8,1787.7,9.50968]
[1743740686173,0.00838528,1787.8,1787.7,12.00968]
[1743740689583,0.7235,1788.3,1788.2,1.11886]
[1743740689769,1.4141,1788.5,1788.4,1.11874]
[1743740689969,0.7449,1788.5,1788.4,1.11874]
[1743740690573,5.968,1788.7,1788.6,1.11861]
[1743740690773,0.7454,1788.8,1788.6,4.84561]
[1743740691065,0.75099016,1788.8,1788.7,1.3973]
[1743740691268,0.00559016,1788.8,1788.7,2.51585]
[1743740691471,0.00559016,1788.8,1788.7,6.44685]
[1743740694873,0.00559016,1788.8,1788.7,6.8732185]
[1743740698678,0.74719016,1788.8,1788.7,6.8732185]
[1743740699071,0.00559016,1788.8,1788.7,6.8732185]
[1743740705677,0.00559016,1788.8,1788.7,10.5982185]
[1743740711579,0.00559016,1788.8,1788.7,13.0982185]
[1743740720995,0.7302,1789.3,1789.2,1.11824]
[1743740721289,0.7302,1789.3,1789.2,8.05004]
[1743740721792,2.2444,1789.3,1789.2,8.05004]
[1743740725190,0.7313,1789.4,1789.2,8.05004]
[1743740725397,0.7313,1789.4,1789.3,2.65398]
[1743740727685,0.7201,1789.6,1789.3,1.5358]
[1743740727897,1.4307,1789.6,1789.5,1.11805]
[1743740728096,2.8221,1789.6,1789.5,4.84105]
[1743740728596,3.94009,1789.6,1789.5,3.723]
[1743740728998,2.8221,1789.6,1789.5,4.84105]
[1743740729198,3.94009,1789.6,1789.5,3.723]
[1743740730100,5.3221,1789.6,1789.4,8.04887]
[1743740730301,1.3991,1789.5,1789.4,8.04887]
[1743740733198,1.3991,1789.5,1789.4,9.58147]
[1743740734500,1.4307,1789.6,1789.5,1.11805]
[1743740734698,2.9579,1789.6,1789.5,2.65065]
[1743740735593,4.07589,1789.6,1789.5,1.5326]
[1743740736300,4.07589,1789.6,1789.4,8.04887]
[1743740736501,1.3973,1789.5,1789.4,9.49667]
[1743740739003,1.3973,1789.5,1789.4,6.9298]
[1743740739504,1.3973,1789.5,1789.4,8.04791]
[1743740740404,1.4307,1789.6,1789.5,1.11805]
[1743740740702,1.4307,1789.6,1789.5,2.56605]
[1743740741407,0.7106,1789.6,1789.5,2.56605]
[1743740742806,0.7106,1789.6,1789.4,3.2078]
[1743740743104,1.82859,1789.6,1789.5,3.721]
[1743740744108,1.82859,1789.6,1789.5,4.83905]
[1743740744607,1.82859,1789.6,1789.5,3.721]
[1743740744908,0.7106,1789.6,1789.5,4.83905]
[1743740745708,1.82859,1789.6,1789.5,4.83905]
[1743740745908,0.7106,1789.6,1789.5,4.83905]
[1743740746302,3.25599,1789.6,1789.5,4.83905]
[1743740746508,2.138,1789.6,1789.5,4.83905]
[1743740747614,0.7106,1789.6,1789.5,4.83905]
[1743740747808,0.7106,1789.6,1789.5,5.53325]
[1743740751317,1.82859,1789.6,1789.5,5.53325]
[1743740751514,0.7106,1789.6,1789.5,5.53325]
[1743740752107,1.82859,1789.6,1789.5,5.53325]
[1743740752311,1.82859,1789.6,1789.5,4.83905]
[1743740753016,0.7106,1789.6,1789.5,4.83905]
[1743740753214,1.82859,1789.6,1789.5,4.83905]
[1743740753514,2.1173,1789.6,1789.5,4.83905]
[1743740754514,0.7106,1789.6,1789.5,4.83905]
[1743740754716,2.54561,1789.8,1789.5,3.721]
[1743740754917,3.29371,1789.8,1789.7,1.11793]